[Event "Early-Titled-Tuesday-Blitz-March-19-2024"]
[Site "Chess.com"]
[Date "2024.03.19"]
[Round "2"]
[White "DraningWaterHi"]
[Black "KetiTsatsalashvili"]
[Result "1-0"]
[WhiteElo "2236"]
[BlackElo "2490"]
[TimeControl "180+1"]
[EndTime "8:18:54 PDT"]
[Termination "DraningWaterHi won on time"]

1. d4 {[%clk 0:02:58.7]} 1... Nf6 {[%clk 0:02:59.7]} 2. Bf4 {[%clk 0:02:56.5]}
2... c5 {[%clk 0:02:58.5]} 3. e3 {[%clk 0:02:56.5]} 3... e6 {[%clk 0:02:56.5]}
4. c3 {[%clk 0:02:55.5]} 4... Nc6 {[%clk 0:02:51.8]} 5. Nf3 {[%clk 0:02:55.3]}
5... cxd4 {[%clk 0:02:51.5]} 6. exd4 {[%clk 0:02:53.7]} 6... d5 {[%clk
0:02:49.3]} 7. Nbd2 {[%clk 0:02:45.6]} 7... Bd6 {[%clk 0:02:48.5]} 8. Ne5 {[%clk
0:02:45.5]} 8... Bxe5 {[%clk 0:02:41.6]} 9. dxe5 {[%clk 0:02:46.4]} 9... Nd7
{[%clk 0:02:41.9]} 10. Nf3 {[%clk 0:02:45.9]} 10... Qb6 {[%clk 0:02:39.9]} 11.
Qd2 {[%clk 0:02:45.5]} 11... Nc5 {[%clk 0:02:29.4]} 12. Be2 {[%clk 0:02:38.1]}
12... Ne4 {[%clk 0:02:29.5]} 13. Qe3 {[%clk 0:02:35.2]} 13... Qxb2 {[%clk
0:02:23]} 14. Rc1 {[%clk 0:02:34.5]} 14... Qb6 {[%clk 0:02:14.2]} 15. Nd4 {[%clk
0:02:28.8]} 15... Nxc3 {[%clk 0:01:40.2]} 16. Nxc6 {[%clk 0:02:14.9]} 16... Nxe2
{[%clk 0:01:15.6]} 17. Qxe2 {[%clk 0:01:59]} 17... bxc6 {[%clk 0:01:15.4]} 18.
Be3 {[%clk 0:01:58.5]} 18... Qc7 {[%clk 0:01:05.5]} 19. Bc5 {[%clk 0:01:56.3]}
19... Qa5+ {[%clk 0:01:04.2]} 20. Qd2 {[%clk 0:01:49.1]} 20... Qxd2+ {[%clk
0:01:02.8]} 21. Kxd2 {[%clk 0:01:50]} 21... Ba6 {[%clk 0:00:59.9]} 22. Rb1
{[%clk 0:01:47.6]} 22... Kd7 {[%clk 0:00:59.3]} 23. f4 {[%clk 0:01:44.7]} 23...
Rab8 {[%clk 0:00:58.1]} 24. Bxa7 {[%clk 0:01:39.2]} 24... Rxb1 {[%clk
0:00:55.8]} 25. Rxb1 {[%clk 0:01:38.6]} 25... Ra8 {[%clk 0:00:50.7]} 26. Bc5
{[%clk 0:01:37.9]} 26... Bb5 {[%clk 0:00:50.9]} 27. a3 {[%clk 0:01:36.6]} 27...
Ra4 {[%clk 0:00:51.1]} 28. Bb4 {[%clk 0:01:31.8]} 28... d4 {[%clk 0:00:45.3]}
29. g3 {[%clk 0:01:30.9]} 29... d3 {[%clk 0:00:45.6]} 30. Rc1 {[%clk 0:01:28.7]}
30... Ra8 {[%clk 0:00:43]} 31. Rc5 {[%clk 0:01:27.5]} 31... f6 {[%clk
0:00:42.3]} 32. exf6 {[%clk 0:01:24.6]} 32... gxf6 {[%clk 0:00:43.2]} 33. Rh5
{[%clk 0:01:25.1]} 33... Rh8 {[%clk 0:00:41.2]} 34. Bc3 {[%clk 0:01:25]} 34...
Ke7 {[%clk 0:00:40.3]} 35. g4 {[%clk 0:01:25.1]} 35... Kf7 {[%clk 0:00:29.6]}
36. g5 {[%clk 0:01:24.4]} 36... e5 {[%clk 0:00:25]} 37. fxe5 {[%clk 0:01:22.2]}
37... fxe5 {[%clk 0:00:19]} 38. Bxe5 {[%clk 0:01:19.4]} 38... Re8 {[%clk
0:00:18.9]} 39. Rxh7+ {[%clk 0:01:13.8]} 39... Kg6 {[%clk 0:00:18.4]} 40. Rg7+
{[%clk 0:01:14.3]} 40... Kf5 {[%clk 0:00:19]} 41. Bd4 {[%clk 0:01:11.3]} 41...
Re2+ {[%clk 0:00:19]} 42. Kc3 {[%clk 0:01:11.7]} 42... Rc2+ {[%clk 0:00:18.9]}
43. Kb3 {[%clk 0:01:11.2]} 43... Rxh2 {[%clk 0:00:14.3]} 44. Bc3 {[%clk
0:01:06.1]} 44... c5 {[%clk 0:00:10.5]} 45. a4 {[%clk 0:01:03.1]} 45... c4+
{[%clk 0:00:09.5]} 46. Kb4 {[%clk 0:01:03.6]} 46... Ba6 {[%clk 0:00:07.6]} 47.
Ra7 {[%clk 0:01:03]} 47... Bc8 {[%clk 0:00:07.2]} 48. Ra5+ {[%clk 0:01:02.7]}
48... Kg6 {[%clk 0:00:07.2]} 49. Kxc4 {[%clk 0:01:02.8]} 49... Bf5 {[%clk
0:00:06.4]} 50. Ra6+ {[%clk 0:01:00]} 50... Kxg5 {[%clk 0:00:06.4]} 51. Rd6
{[%clk 0:01:00.1]} 51... Rh4+ {[%clk 0:00:04.4]} 52. Rd4 {[%clk 0:00:59.3]}
52... Rh1 {[%clk 0:00:03.7]} 53. Rd8 {[%clk 0:00:56]} 53... Rh7 {[%clk
0:00:03.7]} 54. a5 {[%clk 0:00:55.9]} 54... Rc7+ {[%clk 0:00:02.8]} 55. Kb4
{[%clk 0:00:54]} 55... Rb7+ {[%clk 0:00:03.3]} 56. Ka4 {[%clk 0:00:53.4]} 56...
Rc7 {[%clk 0:00:03.5]} 57. Bd2+ {[%clk 0:00:53.5]} 57... Kg4 {[%clk 0:00:02.9]}
58. a6 {[%clk 0:00:53.6]} 58... Bd7+ {[%clk 0:00:03.2]} 59. Ka5 {[%clk 0:00:53]}
59... Kf3 {[%clk 0:00:03.7]} 60. Kb6 {[%clk 0:00:51.7]} 60... Rc6+ {[%clk
0:00:04.2]} 61. Kb7 {[%clk 0:00:51.2]} 61... Rc2 {[%clk 0:00:03.8]} 62. Ba5
{[%clk 0:00:51.4]} 62... Rb2+ {[%clk 0:00:03.7]} 63. Kc7 {[%clk 0:00:49.7]}
63... Bb5 {[%clk 0:00:03.9]} 64. a7 {[%clk 0:00:49.9]} 64... Rc2+ {[%clk
0:00:04]} 65. Kb6 {[%clk 0:00:49.9]} 65... Bc6 {[%clk 0:00:04.6]} 66. Rxd3+
{[%clk 0:00:49.3]} 66... Ke2 {[%clk 0:00:04.4]} 67. Rb3 {[%clk 0:00:48.2]} 67...
Bf3 {[%clk 0:00:04.5]} 68. Rxf3 {[%clk 0:00:41.5]} 68... Kxf3 {[%clk 0:00:04.4]}
69. a8=Q+ {[%clk 0:00:41.6]} 69... Ke2 {[%clk 0:00:03.7]} 70. Qe4+ {[%clk
0:00:41.1]} 70... Kd1 {[%clk 0:00:03.4]} 71. Qd3+ {[%clk 0:00:41.3]} 71... Kc1
{[%clk 0:00:02.3]} 72. Bc3 {[%clk 0:00:41.7]} 1-0

[Event "Early-Titled-Tuesday-Blitz-March-19-2024"]
[Site "Chess.com"]
[Date "2024.03.19"]
[Round "2"]
[White "Legendinunknown"]
[Black "StankovicIvan"]
[Result "1/2-1/2"]
[WhiteElo "2821"]
[BlackElo "2546"]
[TimeControl "180+1"]
[EndTime "8:18:56 PDT"]
[Termination "Game drawn - insufficient material"]

1. e4 {[%clk 0:03:00.9]} 1... c5 {[%clk 0:02:59.8]} 2. Nf3 {[%clk 0:02:57]} 2...
Nc6 {[%clk 0:03:00]} 3. d4 {[%clk 0:02:57.5]} 3... cxd4 {[%clk 0:03:00.9]} 4.
Nxd4 {[%clk 0:02:57.7]} 4... g6 {[%clk 0:03:01.4]} 5. c4 {[%clk 0:02:57.3]} 5...
Bg7 {[%clk 0:02:59.8]} 6. Be3 {[%clk 0:02:57.9]} 6... Qb6 {[%clk 0:03:00.2]} 7.
Nb3 {[%clk 0:02:55.8]} 7... Qc7 {[%clk 0:02:59.9]} 8. Nc3 {[%clk 0:02:55.2]}
8... Bxc3+ {[%clk 0:02:59.4]} 9. bxc3 {[%clk 0:02:56.1]} 9... Nf6 {[%clk
0:02:59.8]} 10. f3 {[%clk 0:02:53.9]} 10... d6 {[%clk 0:03:00]} 11. Be2 {[%clk
0:02:53]} 11... Ne5 {[%clk 0:02:45.1]} 12. c5 {[%clk 0:02:47.7]} 12... dxc5
{[%clk 0:02:40.2]} 13. Bxc5 {[%clk 0:02:48.6]} 13... b6 {[%clk 0:02:33.7]} 14.
Bd4 {[%clk 0:02:43.6]} 14... O-O {[%clk 0:02:32.4]} 15. O-O {[%clk 0:02:38.4]}
15... Be6 {[%clk 0:02:32.4]} 16. f4 {[%clk 0:02:29.7]} 16... Nc6 {[%clk
0:02:18.4]} 17. Bxf6 {[%clk 0:02:18.4]} 17... exf6 {[%clk 0:02:18.4]} 18. f5
{[%clk 0:02:18.2]} 18... Bxb3 {[%clk 0:02:13.6]} 19. axb3 {[%clk 0:02:19.1]}
19... Ne5 {[%clk 0:02:14.2]} 20. Qc1 {[%clk 0:02:09.4]} 20... Rac8 {[%clk
0:02:09.3]} 21. c4 {[%clk 0:02:05.2]} 21... g5 {[%clk 0:02:03.1]} 22. h4 {[%clk
0:02:01]} 22... h6 {[%clk 0:02:02.7]} 23. Qe3 {[%clk 0:01:54.2]} 23... Rfd8
{[%clk 0:01:58.7]} 24. Rfd1 {[%clk 0:01:52.8]} 24... Rxd1+ {[%clk 0:01:57.8]}
25. Rxd1 {[%clk 0:01:53.7]} 25... Rd8 {[%clk 0:01:58.2]} 26. Rd5 {[%clk
0:01:51.4]} 26... Rxd5 {[%clk 0:01:48]} 27. exd5 {[%clk 0:01:52.3]} 27... Qc5
{[%clk 0:01:46.4]} 28. Kf2 {[%clk 0:01:47.6]} 28... Kf8 {[%clk 0:01:43.7]} 29.
g3 {[%clk 0:01:17.3]} 29... Ke7 {[%clk 0:01:42.9]} 30. Bh5 {[%clk 0:01:10.8]}
30... Kd6 {[%clk 0:01:41.8]} 31. Ke2 {[%clk 0:01:09.3]} 31... Qxe3+ {[%clk
0:01:23.4]} 32. Kxe3 {[%clk 0:01:10.2]} 32... Kc5 {[%clk 0:01:23.1]} 33. Be2
{[%clk 0:01:06.6]} 33... a5 {[%clk 0:01:12.4]} 34. Ke4 {[%clk 0:00:59.8]} 34...
Kb4 {[%clk 0:01:11]} 35. Bd1 {[%clk 0:00:54.2]} 35... Kc5 {[%clk 0:00:56.3]} 36.
Ke3 {[%clk 0:00:51.8]} 36... Nd7 {[%clk 0:00:52.4]} 37. Be2 {[%clk 0:00:45.6]}
37... Nb8 {[%clk 0:00:45.3]} 38. Bh5 {[%clk 0:00:43.9]} 38... Kb4 {[%clk
0:00:37.8]} 39. Bxf7 {[%clk 0:00:40.3]} 39... Kxb3 {[%clk 0:00:35.6]} 40. d6
{[%clk 0:00:40.1]} 40... Kb4 {[%clk 0:00:34.9]} 41. Be8 {[%clk 0:00:28.7]} 41...
a4 {[%clk 0:00:28.5]} 42. Kd2 {[%clk 0:00:19.6]} 42... a3 {[%clk 0:00:25.3]} 43.
Kc2 {[%clk 0:00:19.4]} 43... Kxc4 {[%clk 0:00:22.9]} 44. Kb1 {[%clk 0:00:19.5]}
44... b5 {[%clk 0:00:21.9]} 45. Ka2 {[%clk 0:00:18.5]} 45... b4 {[%clk
0:00:21.9]} 46. Ba4 {[%clk 0:00:17.9]} 46... Kd5 {[%clk 0:00:09.4]} 47. d7
{[%clk 0:00:17.6]} 47... Nxd7 {[%clk 0:00:08.3]} 48. Bxd7 {[%clk 0:00:18.5]}
48... Ke4 {[%clk 0:00:08.6]} 49. Kb3 {[%clk 0:00:17.5]} 49... Kf3 {[%clk
0:00:08.1]} 50. hxg5 {[%clk 0:00:17]} 50... hxg5 {[%clk 0:00:07.9]} 51. Be6
{[%clk 0:00:17.8]} 51... Kxg3 {[%clk 0:00:06.9]} 52. Kxb4 {[%clk 0:00:18]} 52...
Kf4 {[%clk 0:00:04.7]} 53. Kxa3 {[%clk 0:00:18.1]} 53... g4 {[%clk 0:00:05.4]}
54. Kb4 {[%clk 0:00:17.7]} 54... g3 {[%clk 0:00:06]} 55. Bd5 {[%clk 0:00:17.5]}
55... Kxf5 {[%clk 0:00:06.1]} 56. Kc3 {[%clk 0:00:18]} 56... Kg4 {[%clk
0:00:05]} 57. Kd2 {[%clk 0:00:17.4]} 57... f5 {[%clk 0:00:05.4]} 58. Ke2 {[%clk
0:00:17]} 58... f4 {[%clk 0:00:05.8]} 59. Bf3+ {[%clk 0:00:17.4]} 59... Kh3
{[%clk 0:00:06.1]} 60. Kf1 {[%clk 0:00:18.3]} 60... Kh2 {[%clk 0:00:04.9]} 61.
Bg2 {[%clk 0:00:18.3]} 61... f3 {[%clk 0:00:05.5]} 62. Bxf3 {[%clk 0:00:19.2]}
62... g2+ {[%clk 0:00:06.2]} 63. Bxg2 {[%clk 0:00:20.1]} 1/2-1/2

[Event "Early-Titled-Tuesday-Blitz-March-19-2024"]
[Site "Chess.com"]
[Date "2024.03.19"]
[Round "2"]
[White "BardArtem"]
[Black "Ginger_GM"]
[Result "1-0"]
[WhiteElo "2831"]
[BlackElo "2583"]
[TimeControl "180+1"]
[EndTime "8:18:57 PDT"]
[Termination "BardArtem won by resignation"]

1. e4 {[%clk 0:03:00.9]} 1... c5 {[%clk 0:02:57.6]} 2. c3 {[%clk 0:02:58.2]}
2... d5 {[%clk 0:02:53]} 3. exd5 {[%clk 0:02:59.1]} 3... Nf6 {[%clk 0:02:52.8]}
4. Bb5+ {[%clk 0:02:58]} 4... Nbd7 {[%clk 0:02:51.2]} 5. Nf3 {[%clk 0:02:58.1]}
5... a6 {[%clk 0:02:50.7]} 6. Be2 {[%clk 0:02:57.9]} 6... Nxd5 {[%clk
0:02:49.3]} 7. d4 {[%clk 0:02:58.2]} 7... cxd4 {[%clk 0:02:45.8]} 8. Qxd4 {[%clk
0:02:51]} 8... e6 {[%clk 0:02:44.6]} 9. O-O {[%clk 0:02:51.4]} 9... Qf6 {[%clk
0:02:38.7]} 10. Nbd2 {[%clk 0:02:43.5]} 10... Qxd4 {[%clk 0:02:37.5]} 11. Nxd4
{[%clk 0:02:44.4]} 11... Be7 {[%clk 0:02:29.7]} 12. Bf3 {[%clk 0:02:43.7]} 12...
N7f6 {[%clk 0:02:23.1]} 13. a4 {[%clk 0:02:43.1]} 13... O-O {[%clk 0:02:19.1]}
14. Nc4 {[%clk 0:02:42.5]} 14... Bc5 {[%clk 0:02:04]} 15. Nb3 {[%clk 0:02:40.7]}
15... Ba7 {[%clk 0:02:03.8]} 16. Nd6 {[%clk 0:02:29.1]} 16... Rd8 {[%clk
0:02:00.5]} 17. Nxc8 {[%clk 0:02:28.7]} 17... Raxc8 {[%clk 0:02:00.3]} 18. Bg5
{[%clk 0:02:19.3]} 18... Rd7 {[%clk 0:01:49]} 19. Rad1 {[%clk 0:02:14.1]} 19...
Rc4 {[%clk 0:01:38.4]} 20. Bxf6 {[%clk 0:01:58.4]} 20... gxf6 {[%clk 0:01:36.4]}
21. Bxd5 {[%clk 0:01:49.4]} 21... exd5 {[%clk 0:01:32.7]} 22. a5 {[%clk
0:01:45.9]} 22... Re4 {[%clk 0:01:18.4]} 23. Rd2 {[%clk 0:01:39.3]} 23... Kg7
{[%clk 0:01:13]} 24. g3 {[%clk 0:01:37.9]} 24... f5 {[%clk 0:01:09.9]} 25. Rfd1
{[%clk 0:01:36.7]} 25... f4 {[%clk 0:01:08.1]} 26. Kf1 {[%clk 0:01:29.9]} 26...
fxg3 {[%clk 0:01:07.2]} 27. hxg3 {[%clk 0:01:29.4]} 27... Re5 {[%clk 0:01:04.7]}
28. f4 {[%clk 0:01:23.1]} 28... Re3 {[%clk 0:01:03.9]} 29. Rxd5 {[%clk
0:01:07.8]} 29... Rxd5 {[%clk 0:00:52.2]} 30. Rxd5 {[%clk 0:01:08.7]} 30... Rxg3
{[%clk 0:00:49.2]} 31. Rd7 {[%clk 0:01:08.8]} 31... Be3 {[%clk 0:00:49.4]} 32.
Rxb7 {[%clk 0:01:01.9]} 32... Bxf4 {[%clk 0:00:48.6]} 33. Nc5 {[%clk 0:00:59.1]}
33... h5 {[%clk 0:00:46.7]} 34. Ne6+ {[%clk 0:00:56.4]} 34... Kf6 {[%clk
0:00:44.9]} 35. Nxf4 {[%clk 0:00:55.9]} 35... Rf3+ {[%clk 0:00:45.3]} 36. Kg2
{[%clk 0:00:42]} 36... Rxf4 {[%clk 0:00:46.2]} 37. Rb6+ {[%clk 0:00:42.4]} 37...
Kg5 {[%clk 0:00:45]} 38. Rxa6 {[%clk 0:00:43.3]} 38... h4 {[%clk 0:00:43.4]} 39.
Ra8 {[%clk 0:00:40.7]} 39... Re4 {[%clk 0:00:39.4]} 40. b4 {[%clk 0:00:37]}
40... Kf4 {[%clk 0:00:37.6]} 41. a6 {[%clk 0:00:32.2]} 41... Re2+ {[%clk
0:00:37.8]} 42. Kh3 {[%clk 0:00:30.7]} 42... Re3+ {[%clk 0:00:26.6]} 43. Kxh4
{[%clk 0:00:29.7]} 43... Rxc3 {[%clk 0:00:25.6]} 44. a7 {[%clk 0:00:22]} 44...
Rc7 {[%clk 0:00:23.8]} 45. b5 {[%clk 0:00:20.5]} 45... f5 {[%clk 0:00:24.2]} 46.
Kh5 {[%clk 0:00:18.8]} 46... Rh7+ {[%clk 0:00:12.9]} 47. Kg6 {[%clk 0:00:18.9]}
47... Rb7 {[%clk 0:00:13.5]} 48. Kf6 {[%clk 0:00:07.4]} 48... Rb6+ {[%clk
0:00:05.7]} 49. Ke7 {[%clk 0:00:04.3]} 49... Ke5 {[%clk 0:00:05.5]} 50. Rb8
{[%clk 0:00:03.1]} 50... Re6+ {[%clk 0:00:04]} 51. Kd7 {[%clk 0:00:03.7]} 51...
Rd6+ {[%clk 0:00:03.6]} 52. Kc7 {[%clk 0:00:04]} 52... Re6 {[%clk 0:00:03.4]}
53. a8=Q {[%clk 0:00:04.4]} 53... f4 {[%clk 0:00:03.9]} 54. Re8 {[%clk
0:00:04.2]} 54... Kf6 {[%clk 0:00:02]} 55. Rxe6+ {[%clk 0:00:05.1]} 55... Kf7
{[%clk 0:00:02.8]} 56. Qf3 {[%clk 0:00:06]} 56... Kxe6 {[%clk 0:00:02.6]} 57. b6
{[%clk 0:00:06.9]} 1-0

[Event "Early-Titled-Tuesday-Blitz-March-19-2024"]
[Site "Chess.com"]
[Date "2024.03.19"]
[Round "2"]
[White "NowInChess"]
[Black "Mops_2004"]
[Result "0-1"]
[WhiteElo "2256"]
[BlackElo "2742"]
[TimeControl "180+1"]
[EndTime "8:18:57 PDT"]
[Termination "Mops_2004 won by checkmate"]

1. e4 {[%clk 0:03:00.9]} 1... c5 {[%clk 0:02:59.8]} 2. d3 {[%clk 0:03:00.8]}
2... Nc6 {[%clk 0:02:57.9]} 3. g3 {[%clk 0:03:01.1]} 3... d5 {[%clk 0:02:57.5]}
4. Nd2 {[%clk 0:03:00.3]} 4... Nf6 {[%clk 0:02:56.3]} 5. Bg2 {[%clk 0:03:00.1]}
5... g6 {[%clk 0:02:52.3]} 6. Ngf3 {[%clk 0:03:00]} 6... Bg7 {[%clk 0:02:52.6]}
7. O-O {[%clk 0:02:59.7]} 7... O-O {[%clk 0:02:52.9]} 8. Re1 {[%clk 0:02:59.8]}
8... e6 {[%clk 0:02:52.5]} 9. c3 {[%clk 0:02:56.5]} 9... a5 {[%clk 0:02:52]} 10.
a4 {[%clk 0:02:55.6]} 10... b6 {[%clk 0:02:51.4]} 11. h4 {[%clk 0:02:53.3]}
11... Ba6 {[%clk 0:02:47]} 12. e5 {[%clk 0:02:48.7]} 12... Nd7 {[%clk
0:02:46.4]} 13. d4 {[%clk 0:02:49]} 13... Rc8 {[%clk 0:02:43.1]} 14. Bf1 {[%clk
0:02:36.2]} 14... Bxf1 {[%clk 0:02:41]} 15. Nxf1 {[%clk 0:02:36.2]} 15... cxd4
{[%clk 0:02:29.8]} 16. cxd4 {[%clk 0:02:37.1]} 16... f6 {[%clk 0:02:28.1]} 17.
Bf4 {[%clk 0:02:16.8]} 17... fxe5 {[%clk 0:02:21.1]} 18. Nxe5 {[%clk 0:02:16]}
18... Ncxe5 {[%clk 0:02:07.9]} 19. Bxe5 {[%clk 0:02:10.1]} 19... Nxe5 {[%clk
0:02:04.8]} 20. dxe5 {[%clk 0:02:11]} 20... Rc4 {[%clk 0:01:33.4]} 21. b3 {[%clk
0:01:58.8]} 21... Re4 {[%clk 0:01:25.1]} 22. f4 {[%clk 0:01:54]} 22... Rxe1
{[%clk 0:01:15.7]} 23. Qxe1 {[%clk 0:01:53.3]} 23... Rf7 {[%clk 0:01:10]} 24.
Ne3 {[%clk 0:01:38.1]} 24... h5 {[%clk 0:01:04.5]} 25. Nc2 {[%clk 0:01:30.7]}
25... Bf8 {[%clk 0:01:04]} 26. Nd4 {[%clk 0:01:20.8]} 26... Bc5 {[%clk 0:01:04]}
27. Qd2 {[%clk 0:01:21.2]} 27... b5 {[%clk 0:00:56.5]} 28. Kg2 {[%clk
0:01:18.4]} 28... Bxd4 {[%clk 0:00:50.1]} 29. Qxd4 {[%clk 0:01:19.3]} 29... b4
{[%clk 0:00:46.5]} 30. Qd3 {[%clk 0:01:07.6]} 30... Kg7 {[%clk 0:00:42.6]} 31.
Rc1 {[%clk 0:01:06.8]} 31... Rc7 {[%clk 0:00:42.4]} 32. Rxc7+ {[%clk 0:00:54.9]}
32... Qxc7 {[%clk 0:00:42.5]} 33. Qa6 {[%clk 0:00:49.2]} 33... Kf7 {[%clk
0:00:37]} 34. Qa8 {[%clk 0:00:38.5]} 34... d4 {[%clk 0:00:14.8]} 35. Qh8 {[%clk
0:00:30.5]} 35... Qc2+ {[%clk 0:00:14.5]} 36. Kh3 {[%clk 0:00:29.3]} 36... Qf5+
{[%clk 0:00:13]} 37. Kg2 {[%clk 0:00:29.4]} 37... d3 {[%clk 0:00:05.8]} 38. Qd8
{[%clk 0:00:28.6]} 38... Qe4+ {[%clk 0:00:03.6]} 39. Kh3 {[%clk 0:00:29.1]}
39... Qd5 {[%clk 0:00:04]} 40. Qc7+ {[%clk 0:00:28.1]} 40... Ke8 {[%clk
0:00:03.1]} 41. Qc8+ {[%clk 0:00:27]} 41... Ke7 {[%clk 0:00:03.2]} 42. Qc7+
{[%clk 0:00:27]} 42... Kf8 {[%clk 0:00:03.9]} 43. Qc8+ {[%clk 0:00:27.2]} 43...
Kg7 {[%clk 0:00:04.1]} 44. Qc7+ {[%clk 0:00:27.2]} 44... Kh6 {[%clk 0:00:03.6]}
45. Qc8 {[%clk 0:00:27.3]} 45... Kg7 {[%clk 0:00:02]} 46. Qc7+ {[%clk 0:00:27]}
46... Kf8 {[%clk 0:00:02.6]} 47. Qc8+ {[%clk 0:00:26.1]} 47... Ke7 {[%clk
0:00:03.5]} 48. Qc7+ {[%clk 0:00:26]} 48... Qd7 {[%clk 0:00:04.1]} 49. Qc5+
{[%clk 0:00:25.8]} 49... Kf7 {[%clk 0:00:04.6]} 50. Qg1 {[%clk 0:00:16.8]} 50...
d2 {[%clk 0:00:04.8]} 51. Qd1 {[%clk 0:00:17.6]} 51... Qd3 {[%clk 0:00:05.2]}
52. Kh2 {[%clk 0:00:17.9]} 52... Qe3 {[%clk 0:00:04]} 53. Qc2 {[%clk 0:00:16.1]}
53... Qe2+ {[%clk 0:00:04.3]} 54. Kh3 {[%clk 0:00:15.3]} 54... Qf1+ {[%clk
0:00:04.2]} 55. Kh2 {[%clk 0:00:15.2]} 55... Qe2+ {[%clk 0:00:04.4]} 56. Kh3
{[%clk 0:00:15.5]} 56... d1=Q {[%clk 0:00:02.7]} 57. Qc7+ {[%clk 0:00:14.6]}
57... Kg8 {[%clk 0:00:01.8]} 58. Qc8+ {[%clk 0:00:14.7]} 58... Kg7 {[%clk
0:00:01.6]} 59. Qc7+ {[%clk 0:00:14.8]} 59... Kh6 {[%clk 0:00:01.8]} 60. Qc8
{[%clk 0:00:13.9]} 60... Qh1# {[%clk 0:00:01.8]} 0-1

[Event "Early-Titled-Tuesday-Blitz-March-19-2024"]
[Site "Chess.com"]
[Date "2024.03.19"]
[Round "2"]
[White "guillembaches"]
[Black "GOGIEFF"]
[Result "0-1"]
[WhiteElo "2560"]
[BlackElo "3002"]
[TimeControl "180+1"]
[EndTime "8:18:57 PDT"]
[Termination "GOGIEFF won on time"]

1. d4 {[%clk 0:03:00.9]} 1... Nf6 {[%clk 0:02:59.4]} 2. Nf3 {[%clk 0:03:01.2]}
2... e6 {[%clk 0:02:59.9]} 3. Bg5 {[%clk 0:03:01.7]} 3... h6 {[%clk 0:02:59]} 4.
Bh4 {[%clk 0:03:01.4]} 4... c5 {[%clk 0:02:59.3]} 5. e3 {[%clk 0:03:01.6]} 5...
Qb6 {[%clk 0:02:58.7]} 6. Qc1 {[%clk 0:03:01.9]} 6... Nc6 {[%clk 0:02:58.4]} 7.
c3 {[%clk 0:03:02]} 7... d5 {[%clk 0:02:58.5]} 8. Nbd2 {[%clk 0:03:02]} 8... Bd7
{[%clk 0:02:58.7]} 9. Bd3 {[%clk 0:03:01.2]} 9... Rc8 {[%clk 0:02:58.8]} 10. Qb1
{[%clk 0:02:56.6]} 10... Nh5 {[%clk 0:02:53.4]} 11. O-O {[%clk 0:02:53.3]} 11...
g5 {[%clk 0:02:53.2]} 12. Bg3 {[%clk 0:02:53.6]} 12... Nxg3 {[%clk 0:02:51.2]}
13. hxg3 {[%clk 0:02:53.9]} 13... Bg7 {[%clk 0:02:51.6]} 14. dxc5 {[%clk
0:02:44.1]} 14... Qxc5 {[%clk 0:02:49]} 15. e4 {[%clk 0:02:44.3]} 15... O-O
{[%clk 0:02:28.1]} 16. Nb3 {[%clk 0:02:34.3]} 16... Qd6 {[%clk 0:02:24]} 17.
exd5 {[%clk 0:02:33.1]} 17... exd5 {[%clk 0:02:15.4]} 18. Bh7+ {[%clk
0:02:28.4]} 18... Kh8 {[%clk 0:02:15]} 19. Bf5 {[%clk 0:02:29]} 19... Be6 {[%clk
0:02:08.6]} 20. Rd1 {[%clk 0:02:26.3]} 20... Ne7 {[%clk 0:02:04.4]} 21. Nbd4
{[%clk 0:02:16.9]} 21... Rce8 {[%clk 0:01:44]} 22. Qd3 {[%clk 0:02:10.2]} 22...
Ng8 {[%clk 0:01:05.5]} 23. Re1 {[%clk 0:02:01.6]} 23... Nf6 {[%clk 0:00:57.7]}
24. Re2 {[%clk 0:01:49.7]} 24... Re7 {[%clk 0:00:51.2]} 25. Rae1 {[%clk
0:01:46.3]} 25... Rfe8 {[%clk 0:00:51.6]} 26. Re3 {[%clk 0:01:32.5]} 26... Qb6
{[%clk 0:00:46.4]} 27. Qc2 {[%clk 0:01:22.5]} 27... Kg8 {[%clk 0:00:36.8]} 28.
Bd3 {[%clk 0:01:21.8]} 28... Bf8 {[%clk 0:00:30.8]} 29. Bf5 {[%clk 0:01:17.5]}
29... Ng4 {[%clk 0:00:25.8]} 30. Bxg4 {[%clk 0:01:04.1]} 30... Bxg4 {[%clk
0:00:23]} 31. Rxe7 {[%clk 0:01:02.5]} 31... Rxe7 {[%clk 0:00:23.9]} 32. Rxe7
{[%clk 0:01:01.6]} 32... Bxe7 {[%clk 0:00:24.8]} 33. Ne5 {[%clk 0:00:58.6]}
33... Bc8 {[%clk 0:00:24.8]} 34. Nf5 {[%clk 0:00:54.6]} 34... Bf8 {[%clk
0:00:24]} 35. g4 {[%clk 0:00:45.5]} 35... Qf6 {[%clk 0:00:19.3]} 36. Nf3 {[%clk
0:00:41.7]} 36... h5 {[%clk 0:00:19.8]} 37. N3d4 {[%clk 0:00:30]} 37... hxg4
{[%clk 0:00:19.9]} 38. Ng3 {[%clk 0:00:27.5]} 38... Bd6 {[%clk 0:00:19.1]} 39.
Ngf5 {[%clk 0:00:22.8]} 39... Be5 {[%clk 0:00:18.8]} 40. Qd3 {[%clk 0:00:23]}
40... a6 {[%clk 0:00:18.3]} 41. a3 {[%clk 0:00:22.7]} 41... Be6 {[%clk
0:00:18.5]} 42. g3 {[%clk 0:00:22.6]} 42... b5 {[%clk 0:00:17.3]} 43. Kg2 {[%clk
0:00:22.2]} 43... Bd7 {[%clk 0:00:17.6]} 44. Ne3 {[%clk 0:00:20.6]} 44... Qd6
{[%clk 0:00:15.6]} 45. Ndf5 {[%clk 0:00:19.6]} 45... Qf6 {[%clk 0:00:14.4]} 46.
Nxd5 {[%clk 0:00:15.6]} 46... Bc6 {[%clk 0:00:12.1]} 47. Ne3 {[%clk 0:00:12.3]}
47... Qf3+ {[%clk 0:00:12.3]} 48. Kg1 {[%clk 0:00:11.4]} 48... Bxg3 {[%clk
0:00:12.5]} 49. fxg3 {[%clk 0:00:11.2]} 49... Qxg3+ {[%clk 0:00:13]} 50. Kf1
{[%clk 0:00:11.6]} 50... Qf3+ {[%clk 0:00:13.1]} 51. Kg1 {[%clk 0:00:11.9]}
51... Bxd5 {[%clk 0:00:13.5]} 52. Qxd5 {[%clk 0:00:09.4]} 52... Qxe3+ {[%clk
0:00:13.9]} 53. Kg2 {[%clk 0:00:10]} 53... Qf3+ {[%clk 0:00:14.5]} 54. Qxf3
{[%clk 0:00:10.6]} 54... gxf3+ {[%clk 0:00:15.2]} 55. Kxf3 {[%clk 0:00:11.5]}
55... f5 {[%clk 0:00:15.7]} 56. Ke3 {[%clk 0:00:11.3]} 56... Kf7 {[%clk
0:00:16.1]} 57. Kd3 {[%clk 0:00:12.2]} 57... g4 {[%clk 0:00:16.6]} 58. b3 {[%clk
0:00:13.1]} 58... g3 {[%clk 0:00:16.6]} 59. c4 {[%clk 0:00:14]} 59... g2 {[%clk
0:00:16.7]} 60. Ke2 {[%clk 0:00:14.9]} 60... g1=Q {[%clk 0:00:17.1]} 0-1